[Event "Early-Titled-Tuesday-Blitz-April-16-2024"]
[Site "Chess.com"]
[Date "2024.04.16"]
[Round "2"]
[White "NastyaHn"]
[Black "NikitaShnadrygin"]
[Result "0-1"]
[WhiteElo "2478"]
[BlackElo "2735"]
[TimeControl "180+1"]
[EndTime "8:17:44 PDT"]
[Termination "NikitaShnadrygin won by resignation"]

1. Nc3 {[%clk 0:03:00.9]} 1... c5 {[%clk 0:02:55.5]} 2. Nf3 {[%clk 0:02:59.8]}
2... Nc6 {[%clk 0:02:55.5]} 3. d4 {[%clk 0:02:59]} 3... cxd4 {[%clk 0:02:55.4]}
4. Nxd4 {[%clk 0:02:58.6]} 4... Nf6 {[%clk 0:02:50.9]} 5. Bg5 {[%clk 0:02:52.9]}
5... Qa5 {[%clk 0:02:45.6]} 6. Bxf6 {[%clk 0:02:47.4]} 6... gxf6 {[%clk
0:02:44.1]} 7. Nb3 {[%clk 0:02:41.1]} 7... Qc7 {[%clk 0:02:35.2]} 8. e3 {[%clk
0:02:39.6]} 8... a6 {[%clk 0:02:33.8]} 9. Be2 {[%clk 0:02:27]} 9... e6 {[%clk
0:02:33.2]} 10. Qd2 {[%clk 0:02:16.1]} 10... Be7 {[%clk 0:02:18.4]} 11. O-O-O
{[%clk 0:02:07.6]} 11... b5 {[%clk 0:02:11.9]} 12. Kb1 {[%clk 0:01:58.4]} 12...
Bb7 {[%clk 0:02:04]} 13. Bf3 {[%clk 0:01:56.7]} 13... Ne5 {[%clk 0:01:50.4]} 14.
Bxb7 {[%clk 0:01:54.5]} 14... Qxb7 {[%clk 0:01:51.3]} 15. f3 {[%clk 0:01:19.2]}
15... d5 {[%clk 0:01:41.6]} 16. e4 {[%clk 0:01:15]} 16... b4 {[%clk 0:01:39.4]}
17. Ne2 {[%clk 0:01:01.8]} 17... dxe4 {[%clk 0:01:38.6]} 18. fxe4 {[%clk
0:00:58.3]} 18... Qxe4 {[%clk 0:01:38.6]} 19. Ng3 {[%clk 0:00:55.6]} 19... Qb7
{[%clk 0:01:24.6]} 20. Rhe1 {[%clk 0:00:42]} 20... a5 {[%clk 0:01:12.5]} 21. Nd4
{[%clk 0:00:36.3]} 21... a4 {[%clk 0:00:56.5]} 22. Qe2 {[%clk 0:00:22]} 22...
Qa6 {[%clk 0:00:25.3]} 23. Qh5 {[%clk 0:00:12.5]} 23... b3 {[%clk 0:00:22.4]}
24. a3 {[%clk 0:00:07.6]} 24... bxc2+ {[%clk 0:00:22]} 25. Nxc2 {[%clk
0:00:07.9]} 25... Rb8 {[%clk 0:00:17.4]} 26. Ka1 {[%clk 0:00:07.3]} 26... Qb5
{[%clk 0:00:13.9]} 27. Rb1 {[%clk 0:00:06.7]} 27... Nc4 {[%clk 0:00:14.1]} 28.
Qxb5+ {[%clk 0:00:05.5]} 28... Rxb5 {[%clk 0:00:15]} 29. Ne4 {[%clk 0:00:05.3]}
29... f5 {[%clk 0:00:14.3]} 30. Nc3 {[%clk 0:00:05.7]} 30... Ra5 {[%clk
0:00:13.3]} 31. Nd4 {[%clk 0:00:05.1]} 31... Kf8 {[%clk 0:00:11.7]} 32. Nc6
{[%clk 0:00:04.4]} 32... Ra6 {[%clk 0:00:12.3]} 33. Nxe7 {[%clk 0:00:03.6]}
33... Kxe7 {[%clk 0:00:13.2]} 34. Nd5+ {[%clk 0:00:02.9]} 34... Kf8 {[%clk
0:00:12.7]} 35. Nb4 {[%clk 0:00:02.6]} 35... Ra5 {[%clk 0:00:12.6]} 36. Rbc1
{[%clk 0:00:03.1]} 36... Nd2 {[%clk 0:00:12.7]} 37. Rc8+ {[%clk 0:00:02.2]}
37... Kg7 {[%clk 0:00:13.3]} 38. Rc7 {[%clk 0:00:02.6]} 38... Nb3+ {[%clk
0:00:12.8]} 39. Ka2 {[%clk 0:00:03.1]} 39... Nd4 {[%clk 0:00:12.1]} 40. Rd1
{[%clk 0:00:03.4]} 40... e5 {[%clk 0:00:09.6]} 41. Nc6 {[%clk 0:00:01.9]} 41...
Nxc6 {[%clk 0:00:09.8]} 42. Rxc6 {[%clk 0:00:02.3]} 42... Rb8 {[%clk 0:00:10.1]}
43. Rd7 {[%clk 0:00:02.4]} 43... Rab5 {[%clk 0:00:10.5]} 44. Rc2 {[%clk
0:00:01.4]} 44... R8b7 {[%clk 0:00:11]} 45. Rf2 {[%clk 0:00:01.3]} 45... Rxd7
{[%clk 0:00:10.7]} 0-1

[Event "Early-Titled-Tuesday-Blitz-April-16-2024"]
[Site "Chess.com"]
[Date "2024.04.16"]
[Round "2"]
[White "babyking1205"]
[Black "MITerryble"]
[Result "0-1"]
[WhiteElo "2635"]
[BlackElo "3071"]
[TimeControl "180+1"]
[EndTime "8:17:45 PDT"]
[Termination "MITerryble won on time"]

1. e4 {[%clk 0:03:00.9]} 1... e6 {[%clk 0:02:57.9]} 2. d4 {[%clk 0:03:00.1]}
2... d5 {[%clk 0:02:58.5]} 3. Bd3 {[%clk 0:03:00]} 3... dxe4 {[%clk 0:02:51.9]}
4. Bxe4 {[%clk 0:03:00.9]} 4... Nf6 {[%clk 0:02:52.5]} 5. Bf3 {[%clk 0:03:01.1]}
5... Nbd7 {[%clk 0:02:52.9]} 6. Ne2 {[%clk 0:03:01.1]} 6... e5 {[%clk
0:02:52.6]} 7. Nbc3 {[%clk 0:03:01.2]} 7... Bd6 {[%clk 0:02:49.1]} 8. Be3 {[%clk
0:03:00.8]} 8... O-O {[%clk 0:02:49.4]} 9. Ng3 {[%clk 0:02:52.4]} 9... Re8
{[%clk 0:02:49.4]} 10. d5 {[%clk 0:02:30.7]} 10... Bb4 {[%clk 0:02:33.2]} 11.
O-O {[%clk 0:02:29]} 11... Nb6 {[%clk 0:02:32.5]} 12. Bg5 {[%clk 0:02:22.2]}
12... h6 {[%clk 0:02:31.3]} 13. Bxf6 {[%clk 0:02:21.9]} 13... Qxf6 {[%clk
0:02:32.2]} 14. Nge4 {[%clk 0:02:21.3]} 14... Qd8 {[%clk 0:02:30.7]} 15. a3
{[%clk 0:02:19.9]} 15... Bf8 {[%clk 0:02:30.5]} 16. Re1 {[%clk 0:01:14.8]} 16...
f5 {[%clk 0:02:30]} 17. Nd2 {[%clk 0:01:14]} 17... g6 {[%clk 0:02:27.7]} 18. Nb3
{[%clk 0:01:06.6]} 18... a6 {[%clk 0:02:18.2]} 19. a4 {[%clk 0:01:05.9]} 19...
Bd6 {[%clk 0:02:08.1]} 20. a5 {[%clk 0:01:04.5]} 20... Nd7 {[%clk 0:02:08.5]}
21. Nd2 {[%clk 0:01:04.7]} 21... e4 {[%clk 0:02:08.7]} 22. Be2 {[%clk
0:01:01.5]} 22... Ne5 {[%clk 0:02:09.1]} 23. Nc4 {[%clk 0:01:01.3]} 23... Nxc4
{[%clk 0:02:08.9]} 24. Bxc4 {[%clk 0:01:01.9]} 24... Bd7 {[%clk 0:02:03]} 25.
Qd4 {[%clk 0:01:00.1]} 25... Qg5 {[%clk 0:02:03]} 26. g3 {[%clk 0:00:58.9]}
26... h5 {[%clk 0:02:02.6]} 27. h4 {[%clk 0:00:58.8]} 27... Qe7 {[%clk
0:02:00.7]} 28. Kg2 {[%clk 0:00:53.9]} 28... Kh7 {[%clk 0:01:58.8]} 29. Rad1
{[%clk 0:00:52.5]} 29... Be5 {[%clk 0:01:51.7]} 30. Qe3 {[%clk 0:00:51.1]} 30...
Qb4 {[%clk 0:01:52.2]} 31. Bb3 {[%clk 0:00:48.9]} 31... Qxa5 {[%clk 0:01:50.1]}
32. d6 {[%clk 0:00:48.4]} 32... c6 {[%clk 0:01:50.1]} 33. Na4 {[%clk 0:00:44.8]}
33... Qd8 {[%clk 0:01:25.2]} 34. Nb6 {[%clk 0:00:38.7]} 34... Rb8 {[%clk
0:01:25.5]} 35. Qc5 {[%clk 0:00:38.9]} 35... Bxb2 {[%clk 0:01:10.1]} 36. c3
{[%clk 0:00:22.8]} 36... Ba3 {[%clk 0:01:10.1]} 37. Qa5 {[%clk 0:00:13.5]} 37...
f4 {[%clk 0:01:05]} 38. Rd4 {[%clk 0:00:06.3]} 38... c5 {[%clk 0:00:28.2]} 39.
Rdxe4 {[%clk 0:00:04.9]} 39... Rxe4 {[%clk 0:00:29.1]} 40. Rxe4 {[%clk
0:00:05.6]} 40... Bc6 {[%clk 0:00:30]} 41. f3 {[%clk 0:00:02.4]} 41... Bxe4
{[%clk 0:00:30.1]} 42. fxe4 {[%clk 0:00:03.3]} 42... f3+ {[%clk 0:00:26.3]} 43.
Kxf3 {[%clk 0:00:03.4]} 43... Qf6+ {[%clk 0:00:26.5]} 44. Kg2 {[%clk 0:00:03.5]}
44... Rf8 {[%clk 0:00:27.1]} 45. Bc4 {[%clk 0:00:01.6]} 45... Qf2+ {[%clk
0:00:26.9]} 46. Kh3 {[%clk 0:00:01.4]} 46... Qf3 {[%clk 0:00:27.5]} 0-1

[Event "Early-Titled-Tuesday-Blitz-April-16-2024"]
[Site "Chess.com"]
[Date "2024.04.16"]
[Round "2"]
[White "Happy1712Drummer"]
[Black "knightinshiningarmour16"]
[Result "0-1"]
[WhiteElo "2496"]
[BlackElo "2299"]
[TimeControl "180+1"]
[EndTime "8:17:47 PDT"]
[Termination "knightinshiningarmour16 won by resignation"]

1. e4 {[%clk 0:03:00.9]} 1... c6 {[%clk 0:02:58.8]} 2. d4 {[%clk 0:03:00.6]}
2... d5 {[%clk 0:02:59.7]} 3. e5 {[%clk 0:03:00.3]} 3... Bf5 {[%clk 0:02:59.9]}
4. Nf3 {[%clk 0:02:57.7]} 4... e6 {[%clk 0:02:59.9]} 5. Nc3 {[%clk 0:02:55.8]}
5... c5 {[%clk 0:02:55.2]} 6. Bd3 {[%clk 0:02:49.8]} 6... Bxd3 {[%clk
0:02:54.6]} 7. Qxd3 {[%clk 0:02:49.3]} 7... cxd4 {[%clk 0:02:54.9]} 8. Nxd4
{[%clk 0:02:49.5]} 8... Nc6 {[%clk 0:02:55.2]} 9. O-O {[%clk 0:02:46.7]} 9...
Nxe5 {[%clk 0:02:53]} 10. Qe2 {[%clk 0:02:41.3]} 10... Nc6 {[%clk 0:02:52.5]}
11. Ndb5 {[%clk 0:02:37.9]} 11... a6 {[%clk 0:02:50]} 12. Na3 {[%clk 0:02:32.5]}
12... b5 {[%clk 0:02:50]} 13. Rd1 {[%clk 0:02:09.8]} 13... Nge7 {[%clk
0:02:04.9]} 14. Bg5 {[%clk 0:02:05.7]} 14... b4 {[%clk 0:01:58.9]} 15. Nab1
{[%clk 0:02:04.4]} 15... bxc3 {[%clk 0:01:58.9]} 16. Nxc3 {[%clk 0:02:05.3]}
16... h6 {[%clk 0:01:55.6]} 17. Bh4 {[%clk 0:02:05.1]} 17... g5 {[%clk
0:01:55.3]} 18. Bg3 {[%clk 0:02:01.1]} 18... Bg7 {[%clk 0:01:55.3]} 19. Na4
{[%clk 0:01:50.8]} 19... Qa5 {[%clk 0:01:49.7]} 20. Nc3 {[%clk 0:01:42.8]} 20...
Bxc3 {[%clk 0:01:37.1]} 21. bxc3 {[%clk 0:01:43.7]} 21... Qxc3 {[%clk 0:01:32]}
22. Rab1 {[%clk 0:01:33.1]} 22... O-O {[%clk 0:01:19.6]} 23. Rb3 {[%clk
0:01:32]} 23... Qc4 {[%clk 0:01:17.5]} 24. Qh5 {[%clk 0:01:29.3]} 24... Qxc2
{[%clk 0:01:04.7]} 25. Rbd3 {[%clk 0:01:15.8]} 25... Kh7 {[%clk 0:01:03.6]} 26.
h4 {[%clk 0:01:07]} 26... f6 {[%clk 0:01:03.4]} 27. hxg5 {[%clk 0:01:03.1]}
27... fxg5 {[%clk 0:01:04.3]} 28. Qg4 {[%clk 0:01:01.6]} 28... Nf5 {[%clk
0:01:01.1]} 29. R3d2 {[%clk 0:00:48.6]} 29... Qe4 {[%clk 0:00:56.3]} 30. Qh3
{[%clk 0:00:46.2]} 30... Nxg3 {[%clk 0:00:51.1]} 31. Qxg3 {[%clk 0:00:45.1]}
31... Qf4 {[%clk 0:00:43.9]} 32. Qd3+ {[%clk 0:00:44.1]} 32... Qf5 {[%clk
0:00:43.3]} 33. Qe3 {[%clk 0:00:42.5]} 33... Ne5 {[%clk 0:00:40]} 34. f3 {[%clk
0:00:34.6]} 34... Nc4 {[%clk 0:00:27.9]} 35. Qc3 {[%clk 0:00:27.2]} 35... Nxd2
{[%clk 0:00:27.8]} 36. Qxd2 {[%clk 0:00:28.1]} 36... Rac8 {[%clk 0:00:27.5]} 37.
Qb4 {[%clk 0:00:20.4]} 37... g4 {[%clk 0:00:27.4]} 38. Qe7+ {[%clk 0:00:18.8]}
38... Qf7 {[%clk 0:00:27.5]} 39. Qa3 {[%clk 0:00:16.3]} 39... gxf3 {[%clk
0:00:27.5]} 40. Qd3+ {[%clk 0:00:16.9]} 40... Qf5 {[%clk 0:00:27.8]} 41. Qxa6
{[%clk 0:00:15]} 41... fxg2 {[%clk 0:00:27.5]} 42. Qb7+ {[%clk 0:00:14.9]} 42...
Qf7 {[%clk 0:00:27.6]} 43. Qb1+ {[%clk 0:00:14.9]} 43... Kh8 {[%clk 0:00:26.4]}
44. Qb2+ {[%clk 0:00:15.3]} 44... Qf6 {[%clk 0:00:26.4]} 45. Qe2 {[%clk
0:00:13.2]} 45... Qf1+ {[%clk 0:00:26.1]} 46. Rxf1 {[%clk 0:00:12.5]} 46...
gxf1=Q+ {[%clk 0:00:27]} 47. Qxf1 {[%clk 0:00:13.1]} 47... Rxf1+ {[%clk
0:00:27.1]} 48. Kxf1 {[%clk 0:00:14]} 48... Rc2 {[%clk 0:00:27.3]} 0-1

[Event "Early-Titled-Tuesday-Blitz-April-16-2024"]
[Site "Chess.com"]
[Date "2024.04.16"]
[Round "2"]
[White "KuzubovYuriy"]
[Black "Root_21"]
[Result "0-1"]
[WhiteElo "2911"]
[BlackElo "2615"]
[TimeControl "180+1"]
[EndTime "8:17:49 PDT"]
[Termination "Root_21 won on time"]

1. d4 {[%clk 0:03:00.9]} 1... Nf6 {[%clk 0:02:59.7]} 2. c4 {[%clk 0:03:01.3]}
2... e6 {[%clk 0:03:00]} 3. Nf3 {[%clk 0:03:01.5]} 3... d5 {[%clk 0:03:00.3]} 4.
Nc3 {[%clk 0:03:01.7]} 4... c5 {[%clk 0:03:00.2]} 5. cxd5 {[%clk 0:03:01.6]}
5... exd5 {[%clk 0:03:00.7]} 6. g3 {[%clk 0:02:53.5]} 6... Nc6 {[%clk
0:03:00.6]} 7. Bg2 {[%clk 0:02:53.8]} 7... cxd4 {[%clk 0:03:00.8]} 8. Nxd4
{[%clk 0:02:53.5]} 8... Bc5 {[%clk 0:03:01.2]} 9. Nxc6 {[%clk 0:02:50.6]} 9...
bxc6 {[%clk 0:03:01.2]} 10. O-O {[%clk 0:02:50.6]} 10... O-O {[%clk 0:02:59.7]}
11. Qc2 {[%clk 0:02:49.5]} 11... Bb6 {[%clk 0:02:59.6]} 12. Rd1 {[%clk
0:02:38.2]} 12... Ng4 {[%clk 0:02:45.1]} 13. e3 {[%clk 0:02:33.1]} 13... Qf6
{[%clk 0:02:24.3]} 14. Qe2 {[%clk 0:02:26.7]} 14... a5 {[%clk 0:02:09.1]} 15.
Na4 {[%clk 0:02:06]} 15... Bc7 {[%clk 0:01:57.5]} 16. h3 {[%clk 0:01:56.6]}
16... Ne5 {[%clk 0:01:57.2]} 17. b3 {[%clk 0:01:55.5]} 17... Nf3+ {[%clk
0:01:30.1]} 18. Bxf3 {[%clk 0:01:48.2]} 18... Qxa1 {[%clk 0:01:29.7]} 19. Ba3
{[%clk 0:01:41.5]} 19... Qf6 {[%clk 0:01:29]} 20. Bxf8 {[%clk 0:01:39.8]} 20...
Kxf8 {[%clk 0:01:29.9]} 21. Kg2 {[%clk 0:01:32.5]} 21... Bf5 {[%clk 0:01:10.5]}
22. Rc1 {[%clk 0:01:20.3]} 22... Kg8 {[%clk 0:01:06.4]} 23. h4 {[%clk
0:01:16.8]} 23... g6 {[%clk 0:01:03.3]} 24. Nc5 {[%clk 0:01:14.5]} 24... h5
{[%clk 0:01:00.9]} 25. Qd1 {[%clk 0:01:01.1]} 25... Rd8 {[%clk 0:00:51.3]} 26.
Kg1 {[%clk 0:00:46.5]} 26... Bc8 {[%clk 0:00:41.1]} 27. Bg2 {[%clk 0:00:44.9]}
27... Kg7 {[%clk 0:00:34.7]} 28. Nd3 {[%clk 0:00:41.8]} 28... Bf5 {[%clk
0:00:30.3]} 29. Ne1 {[%clk 0:00:35.7]} 29... Bb6 {[%clk 0:00:24.6]} 30. Nf3
{[%clk 0:00:31.6]} 30... Bg4 {[%clk 0:00:24.7]} 31. Qe2 {[%clk 0:00:17.9]} 31...
Re8 {[%clk 0:00:19.6]} 32. Qa6 {[%clk 0:00:15.9]} 32... Bxe3 {[%clk 0:00:16.9]}
33. Rxc6 {[%clk 0:00:12.5]} 33... Bxf2+ {[%clk 0:00:13.1]} 34. Kxf2 {[%clk
0:00:09.7]} 34... Qb2+ {[%clk 0:00:13.7]} 35. Kg1 {[%clk 0:00:09.1]} 35... Bxf3
{[%clk 0:00:12.7]} 36. Bxf3 {[%clk 0:00:04.7]} 36... Re1+ {[%clk 0:00:12.3]} 37.
Qf1 {[%clk 0:00:05.4]} 37... Qd4+ {[%clk 0:00:09.3]} 38. Kg2 {[%clk 0:00:03.5]}
38... Rxf1 {[%clk 0:00:09.7]} 39. Kxf1 {[%clk 0:00:03.9]} 39... Qa1+ {[%clk
0:00:10.2]} 40. Kg2 {[%clk 0:00:01.4]} 40... Qxa2+ {[%clk 0:00:10.8]} 41. Kh3
{[%clk 0:00:02.1]} 41... Qxb3 {[%clk 0:00:11.1]} 42. Bg2 {[%clk 0:00:02.3]}
42... a4 {[%clk 0:00:11.2]} 43. Rd6 {[%clk 0:00:02.7]} 43... a3 {[%clk
0:00:09.3]} 44. Bxd5 {[%clk 0:00:02.9]} 44... Qb5 {[%clk 0:00:08.9]} 0-1

[Event "Early-Titled-Tuesday-Blitz-April-16-2024"]
[Site "Chess.com"]
[Date "2024.04.16"]
[Round "2"]
[White "N_I_Chess"]
[Black "Alexchess1984"]
[Result "1/2-1/2"]
[WhiteElo "2402"]
[BlackElo "2683"]
[TimeControl "180+1"]
[EndTime "8:17:49 PDT"]
[Termination "Game drawn - insufficient material"]

1. d4 {[%clk 0:03:00.9]} 1... Nf6 {[%clk 0:02:59.3]} 2. c4 {[%clk 0:03:00.3]}
2... g6 {[%clk 0:02:57.8]} 3. Nc3 {[%clk 0:03:00.7]} 3... Bg7 {[%clk 0:02:58.4]}
4. e4 {[%clk 0:03:00.6]} 4... d6 {[%clk 0:02:58.4]} 5. f4 {[%clk 0:03:00.8]}
5... O-O {[%clk 0:02:55.8]} 6. Nf3 {[%clk 0:03:01.1]} 6... Bg4 {[%clk
0:02:55.3]} 7. Be2 {[%clk 0:02:57.1]} 7... Nc6 {[%clk 0:02:54.3]} 8. d5 {[%clk
0:02:47.2]} 8... Nb8 {[%clk 0:02:51.5]} 9. O-O {[%clk 0:02:47.1]} 9... Nbd7
{[%clk 0:02:50.7]} 10. h3 {[%clk 0:02:44]} 10... Bxf3 {[%clk 0:02:50.2]} 11.
Bxf3 {[%clk 0:02:44.9]} 11... c6 {[%clk 0:02:46.9]} 12. Be3 {[%clk 0:02:40.6]}
12... cxd5 {[%clk 0:02:44.8]} 13. cxd5 {[%clk 0:02:38.9]} 13... Ne8 {[%clk
0:02:35.4]} 14. Bd4 {[%clk 0:02:31.9]} 14... Bxd4+ {[%clk 0:02:33.4]} 15. Qxd4
{[%clk 0:02:32.8]} 15... Qb6 {[%clk 0:02:33.6]} 16. Qxb6 {[%clk 0:02:30.6]}
16... Nxb6 {[%clk 0:02:34.5]} 17. b3 {[%clk 0:02:28]} 17... Nc7 {[%clk
0:02:31.9]} 18. Rac1 {[%clk 0:02:17.6]} 18... Na6 {[%clk 0:02:28.6]} 19. Nb5
{[%clk 0:01:56.6]} 19... Nb4 {[%clk 0:02:27]} 20. Rc7 {[%clk 0:01:50.7]} 20...
Nxa2 {[%clk 0:02:16.5]} 21. Rxe7 {[%clk 0:01:42.8]} 21... Rfd8 {[%clk
0:02:15.1]} 22. Rxb7 {[%clk 0:01:40.4]} 22... Nd7 {[%clk 0:01:58.6]} 23. Nxd6
{[%clk 0:00:50.3]} 23... Nc5 {[%clk 0:01:56.3]} 24. Rb5 {[%clk 0:00:50.2]} 24...
Nd3 {[%clk 0:01:46.3]} 25. e5 {[%clk 0:00:37]} 25... Nxf4 {[%clk 0:01:28.9]} 26.
Ne4 {[%clk 0:00:33.7]} 26... a5 {[%clk 0:01:09.6]} 27. d6 {[%clk 0:00:22.4]}
27... Ra7 {[%clk 0:01:02.4]} 28. Ra1 {[%clk 0:00:21]} 28... Nd3 {[%clk 0:00:36]}
29. Rxa2 {[%clk 0:00:15.2]} 29... Nc1 {[%clk 0:00:31.2]} 30. Raxa5 {[%clk
0:00:14.7]} 30... Rxa5 {[%clk 0:00:30.7]} 31. Rxa5 {[%clk 0:00:15.6]} 31... Nxb3
{[%clk 0:00:31]} 32. Ra7 {[%clk 0:00:14.5]} 32... Nd4 {[%clk 0:00:29.3]} 33.
Nf6+ {[%clk 0:00:14.8]} 33... Kg7 {[%clk 0:00:27.6]} 34. Bd5 {[%clk 0:00:15.7]}
34... Nf5 {[%clk 0:00:25.1]} 35. Rxf7+ {[%clk 0:00:14.9]} 35... Kh6 {[%clk
0:00:25.7]} 36. Rxh7+ {[%clk 0:00:13.1]} 36... Kg5 {[%clk 0:00:25.7]} 37. Kh2
{[%clk 0:00:11.2]} 37... Nxd6 {[%clk 0:00:22.8]} 38. Rd7 {[%clk 0:00:06.8]}
38... Rxd7 {[%clk 0:00:20.5]} 39. Nxd7 {[%clk 0:00:07.7]} 39... Nf5 {[%clk
0:00:20.4]} 40. e6 {[%clk 0:00:04.7]} 40... Ne7 {[%clk 0:00:20.2]} 41. g4 {[%clk
0:00:03.9]} 41... Nxd5 {[%clk 0:00:20]} 42. Ne5 {[%clk 0:00:03.7]} 42... Kf6
{[%clk 0:00:16.7]} 43. Nxg6 {[%clk 0:00:02.6]} 43... Kxg6 {[%clk 0:00:16.9]} 44.
Kg3 {[%clk 0:00:03.5]} 44... Kf6 {[%clk 0:00:17.2]} 45. h4 {[%clk 0:00:04.4]}
45... Kxe6 {[%clk 0:00:17.4]} 46. h5 {[%clk 0:00:05.3]} 46... Kf6 {[%clk
0:00:17.7]} 47. h6 {[%clk 0:00:06.2]} 47... Kg6 {[%clk 0:00:18]} 48. g5 {[%clk
0:00:07.1]} 48... Ne7 {[%clk 0:00:16]} 49. h7 {[%clk 0:00:08]} 49... Kxh7 {[%clk
0:00:15.4]} 50. g6+ {[%clk 0:00:08.3]} 50... Kxg6 {[%clk 0:00:15.3]} 1/2-1/2

[Event "Early-Titled-Tuesday-Blitz-April-16-2024"]
[Site "Chess.com"]
[Date "2024.04.16"]
[Round "2"]
[White "LeoWin2012"]
[Black "Caradhrast"]
[Result "1/2-1/2"]
[WhiteElo "2306"]
[BlackElo "2652"]
[TimeControl "180+1"]
[EndTime "8:17:50 PDT"]
[Termination "Game drawn by repetition"]

1. c4 {[%clk 0:03:00.9]} 1... g6 {[%clk 0:02:55.5]} 2. Nc3 {[%clk 0:03:00.4]}
2... Bg7 {[%clk 0:02:53.9]} 3. d4 {[%clk 0:02:58.5]} 3... d6 {[%clk 0:02:53.9]}
4. e4 {[%clk 0:02:54.2]} 4... Nf6 {[%clk 0:02:52.3]} 5. Nf3 {[%clk 0:02:51.7]}
5... O-O {[%clk 0:02:52]} 6. Be2 {[%clk 0:02:49.2]} 6... e5 {[%clk 0:02:52.1]}
7. dxe5 {[%clk 0:02:43.4]} 7... dxe5 {[%clk 0:02:53]} 8. Qxd8 {[%clk 0:02:41.3]}
8... Rxd8 {[%clk 0:02:53.9]} 9. Bg5 {[%clk 0:02:41.9]} 9... Rf8 {[%clk
0:02:53.9]} 10. Nxe5 {[%clk 0:02:36.8]} 10... Nxe4 {[%clk 0:02:52.7]} 11. Nxe4
{[%clk 0:02:27.6]} 11... Bxe5 {[%clk 0:02:52.5]} 12. O-O-O {[%clk 0:02:28.1]}
12... Bf5 {[%clk 0:02:37.9]} 13. Nf6+ {[%clk 0:02:27.3]} 13... Kg7 {[%clk
0:02:37.9]} 14. Nd5 {[%clk 0:02:20.1]} 14... c6 {[%clk 0:02:36.3]} 15. Ne3
{[%clk 0:02:17]} 15... Be6 {[%clk 0:02:35.9]} 16. Ng4 {[%clk 0:02:13.8]} 16...
Bxg4 {[%clk 0:02:17.2]} 17. Bxg4 {[%clk 0:02:14.7]} 17... f5 {[%clk 0:01:59.5]}
18. Bf3 {[%clk 0:02:08.3]} 18... Na6 {[%clk 0:01:55.8]} 19. Rd7+ {[%clk
0:02:07.9]} 19... Rf7 {[%clk 0:01:56.1]} 20. Rhd1 {[%clk 0:02:08.4]} 20... Rf8
{[%clk 0:01:43.7]} 21. h4 {[%clk 0:01:58.4]} 21... Nc5 {[%clk 0:01:25.9]} 22.
Rxf7+ {[%clk 0:01:57.8]} 22... Rxf7 {[%clk 0:01:26.8]} 23. Be3 {[%clk 0:01:58]}
23... Na4 {[%clk 0:01:05.4]} 24. Rd2 {[%clk 0:01:57.1]} 24... a6 {[%clk
0:00:37.5]} 25. b3 {[%clk 0:01:54.3]} 25... Nc3 {[%clk 0:00:37.3]} 26. Bd4
{[%clk 0:01:45.9]} 26... Bxd4 {[%clk 0:00:35.3]} 27. Rxd4 {[%clk 0:01:46.8]}
27... Nxa2+ {[%clk 0:00:35.9]} 28. Kb2 {[%clk 0:01:47]} 28... Nb4 {[%clk
0:00:36.6]} 29. c5 {[%clk 0:01:47.4]} 29... a5 {[%clk 0:00:36]} 30. Be2 {[%clk
0:01:32.9]} 30... Re7 {[%clk 0:00:35.9]} 31. Bc4 {[%clk 0:01:30.5]} 31... h6
{[%clk 0:00:34.7]} 32. Kc3 {[%clk 0:01:27.5]} 32... g5 {[%clk 0:00:34.6]} 33.
hxg5 {[%clk 0:01:23.2]} 33... hxg5 {[%clk 0:00:35.5]} 34. g3 {[%clk 0:01:21.6]}
34... Kf6 {[%clk 0:00:34.7]} 35. Rd6+ {[%clk 0:01:19]} 35... Ke5 {[%clk
0:00:35.2]} 36. Rd1 {[%clk 0:01:15.8]} 36... f4 {[%clk 0:00:35.4]} 37. Re1+
{[%clk 0:01:04.1]} 37... Kf6 {[%clk 0:00:36.1]} 38. Rxe7 {[%clk 0:01:05]} 38...
Kxe7 {[%clk 0:00:37]} 39. gxf4 {[%clk 0:01:05.6]} 39... gxf4 {[%clk 0:00:37.9]}
40. Kd4 {[%clk 0:00:59.4]} 40... Kf6 {[%clk 0:00:37.8]} 41. Ke4 {[%clk
0:00:54.8]} 41... f3 {[%clk 0:00:35.1]} 42. Kxf3 {[%clk 0:00:53.5]} 42... Ke5
{[%clk 0:00:35.5]} 43. Ke3 {[%clk 0:00:49.6]} 43... Nc2+ {[%clk 0:00:35.9]} 44.
Kd3 {[%clk 0:00:43.7]} 44... Ne1+ {[%clk 0:00:36]} 45. Ke3 {[%clk 0:00:42.4]}
45... Nc2+ {[%clk 0:00:36.1]} 46. Kd3 {[%clk 0:00:42.6]} 46... Ne1+ {[%clk
0:00:33.2]} 47. Ke3 {[%clk 0:00:43.1]} 47... Ng2+ {[%clk 0:00:33]} 48. Kf3
{[%clk 0:00:43.2]} 48... Nf4 {[%clk 0:00:33.4]} 49. Ke3 {[%clk 0:00:40.9]} 49...
Ng6 {[%clk 0:00:26.6]} 50. f3 {[%clk 0:00:36.8]} 50... Nf4 {[%clk 0:00:25.5]}
51. Bg8 {[%clk 0:00:32]} 51... Nh5 {[%clk 0:00:23]} 52. Bf7 {[%clk 0:00:29.6]}
52... Nf4 {[%clk 0:00:22.7]} 53. Bg8 {[%clk 0:00:29.6]} 53... Ng6 {[%clk
0:00:22.3]} 54. Bf7 {[%clk 0:00:27.7]} 54... Ne7 {[%clk 0:00:20.6]} 55. f4+
{[%clk 0:00:27.2]} 55... Kf6 {[%clk 0:00:21.4]} 56. Bc4 {[%clk 0:00:26.6]} 56...
Kf5 {[%clk 0:00:21.5]} 57. Bd3+ {[%clk 0:00:25.6]} 57... Kf6 {[%clk 0:00:22.1]}
58. Bc4 {[%clk 0:00:25.5]} 58... Kf5 {[%clk 0:00:21.9]} 59. Bd3+ {[%clk
0:00:25.8]} 59... Kf6 {[%clk 0:00:22.6]} 60. Bc4 {[%clk 0:00:26.3]} 1/2-1/2